bitfinex-derivatives/quotes_ETHF0:USTF0_20260120
["timestamp","ask_amount","ask_price","bid_price","bid_amount"]
[1768943615856,0.16655,3005.7,3005.0,2.99312249]
[1768943616056,0.16656,3005.5,3005.0,2.99312249]
[1768943616557,0.16656,3005.5,3004.9,2.99588539]
[1768943618358,0.16656,3005.5,3004.9,0.0027629]
[1768943627060,0.16657,3005.4,3004.8,2.99312249]
[1768943627269,0.16657,3005.4,3004.8,2.089]
[1768943628166,0.16657,3005.4,3004.8,2.09315345]
[1768943634373,0.16658,3005.3,3004.8,0.00415345]
[1768943634671,0.14488991,3005.2,3004.8,0.00415345]
[1768943635169,0.16658,3005.3,3004.8,0.00415345]
[1768943637774,0.31146991,3005.2,3004.5,5.08912249]
[1768943638679,0.31146991,3005.2,3004.5,5.09163446]
[1768943639978,0.31146991,3005.2,3004.5,2.99563446]
[1768943641277,0.14488991,3005.2,3004.5,2.99563446]
[1768943641575,0.31149991,3004.8,3004.1,2.99312249]
[1768943641766,0.16661,3004.7,3004.0,2.99312249]
[1768943642183,0.16661,3004.7,3003.9,2.99312249]
[1768943642576,0.16661,3004.7,3003.9,2.99643456]
[1768943642880,0.16661,3004.6,3003.9,2.99643456]
[1768943643179,0.17073506,3004.6,3003.9,0.00331207]
[1768943644881,0.31562497,3004.6,3003.9,0.00331207]
[1768943645073,0.16662,3004.5,3003.9,0.00331207]
[1768943646878,0.31152991,3004.2,3003.3,2.99312249]
[1768943647076,0.16665,3004.0,3003.1,2.99312249]
[1768943647273,0.16665,3004.0,3003.3,2.105]
[1768943647674,0.16665,3004.0,3003.3,2.10755439]
[1768943652082,0.9304,3003.9,3003.3,2.10755439]
[1768943655784,1.09705,3003.9,3003.3,2.10755439]
[1768943656984,1.09705,3003.9,3003.3,3.27326017]
[1768943657487,1.09705,3003.9,3003.5,1.16570578]
[1768943661290,1.09705,3003.9,3003.3,2.10755439]
[1768943661587,1.09705,3003.9,3003.3,3.27326017]
[1768943663881,1.09705,3003.9,3003.3,1.16826017]
[1768943664081,0.16666,3003.8,3003.3,0.00255439]
[1768943664284,0.16666,3003.8,3003.1,1.16570578]
[1768943664991,0.16667,3003.7,3002.9,1.16570578]
[1768943665288,1.07225771,3003.9,3002.9,0.00267096]
[1768943665289,0.16667,3003.6,3002.9,0.00267096]
[1768943665478,0.16667,3003.6,3002.9,1.16837674]
[1768943671191,0.16667,3003.6,3002.9,0.00267096]
[1768943671389,0.30852771,3003.6,3002.9,0.00267096]
[1768943671586,0.16668,3003.5,3002.9,0.00267096]
[1768943676292,0.16668,3003.5,3002.9,1.16837674]
[1768943676490,0.16668,3003.4,3002.9,1.16837674]
[1768943676694,0.30853771,3003.4,3002.9,0.00267096]
[1768943678294,1.02488,3003.4,3002.9,0.00267096]
[1768943678797,1.02488,3003.4,3002.9,1.16837674]
[1768943682195,1.16570578,3004.0,3002.9,1.16837674]
[1768943682196,0.14185771,3004.2,3003.3,1.16570578]
[1768943682390,0.30849771,3004.2,3003.5,1.16570578]
[1768943683094,0.30849771,3004.2,3003.7,1.16570578]
[1768943683401,0.30849771,3004.2,3003.5,1.16570578]
[1768943683591,0.16664,3004.2,3003.5,1.16570578]
[1768943690204,0.14598277,3004.6,3003.9,1.16570578]
[1768943690397,0.00412506,3004.6,3004.3,1.16570578]
[1768943690591,0.16661,3004.8,3004.3,1.16570578]
[1768943690804,0.16661,3004.8,3004.1,1.16570578]
[1768943691604,0.17037883,3004.8,3004.1,1.16570578]
[1768943691805,0.16661,3004.7,3004.1,1.16570578]
[1768943693406,0.16662,3004.6,3003.9,1.16570578]
[1768943693907,0.16663,3004.4,3003.5,6.06570578]
[1768943694205,0.16663,3004.3,3003.5,1.16570578]
[1768943695306,0.16664,3004.1,3003.3,6.27282827]
[1768943695506,0.16664,3004.1,3003.3,3.27970578]
[1768943696403,0.16664,3004.1,3003.5,1.16570578]
[1768943700406,0.16665,3004.0,3003.5,1.16570578]
[1768943700606,0.16665,3003.9,3003.3,2.114]
[1768943701003,1.16570578,3004.2,3003.3,2.114]
[1768943701004,0.16666,3003.8,3003.3,2.114]
[1768943701314,0.16666,3003.7,3003.3,2.114]
[1768943701515,0.16668,3003.5,3002.9,2.99579345]
[1768943701716,0.16668,3003.5,3002.9,0.00267096]
[1768943701904,1.30233963,3003.8,3002.9,0.00267096]
[1768943702111,0.16669,3003.3,3002.9,0.00267096]
[1768943702300,0.16669,3003.3,3002.6,2.99312249]
[1768943702301,0.16669,3003.2,3002.5,6.27682827]
[1768943702505,0.16669,3003.2,3002.5,3.28370578]
[1768943702915,0.16669,3003.2,3002.7,1.16570578]
[1768943703215,0.16669,3003.2,3002.7,1.1692621]
[1768943705010,0.13663385,3003.8,3002.9,1.16570578]
[1768943705212,0.16666,3003.8,3003.3,1.16570578]
[1768943705410,0.30326385,3004.4,3003.7,1.16570578]
[1768943705611,0.16663,3004.4,3003.9,1.16570578]
[1768943707718,0.16663,3004.4,3003.7,1.16570578]
[1768943709521,0.16663,3004.4,3003.9,1.16570578]
[1768943715428,0.16663,3004.3,3003.5,1.16570578]
[1768943715624,0.16663,3004.3,3003.3,2.99312249]
[1768943715625,0.16665,3004.1,3003.3,5.11212249]
[1768943715826,0.16665,3004.1,3003.3,2.119]
[1768943716020,0.16665,3004.1,3003.3,3.28470578]
[1768943716326,0.16665,3004.1,3003.3,1.16570578]
[1768943717023,0.16665,3004.1,3003.0,6.27777439]
[1768943718021,0.16665,3004.1,3003.3,1.1656519]
[1768943718226,0.14745085,3004.7,3003.6,1.1656519]
[1768943718619,0.16665,3004.1,3003.6,1.1656519]
[1768943718925,0.14745085,3004.4,3003.1,2.99312249]
[1768943719223,0.16666,3003.8,3002.9,2.99312249]
[1768943719619,0.16666,3003.8,3002.8,2.99312249]
[1768943719924,0.16667,3003.7,3002.7,5.11567881]
[1768943720721,0.16667,3003.7,3002.9,1.1656519]
[1768943725428,0.16667,3003.7,3002.7,5.11567881]
[1768943725826,0.16667,3003.7,3002.7,2.12255632]
[1768943726732,0.16667,3003.6,3002.7,2.12255632]
[1768943726918,0.16668,3003.4,3002.7,0.00355632]
[1768943728527,0.16669,3003.3,3002.7,0.00355632]
[1768943737040,0.31414085,3003.3,3002.7,0.00355632]
[1768943761662,0.14955866,3003.2,3002.7,0.00355632]
[1768943766768,0.16669,3003.3,3002.7,0.00355632]
[1768943766968,0.16669,3003.3,3002.7,2.99667881]
[1768943767467,0.16669,3003.3,3002.7,0.00355632]
[1768943768168,0.14955866,3003.2,3002.7,0.00355632]
[1768943768471,0.14955866,3003.2,3002.5,2.99312249]
[1768943769267,0.14955866,3003.2,3002.5,2.99714519]
[1768943780579,0.31624866,3003.2,3002.5,2.99714519]
[1768943782886,0.1667,3003.1,3002.5,0.0040227]
[1768943783181,0.16673,3002.6,3002.2,2.165]
[1768943784179,0.1710066,3002.6,3002.2,2.16914666]
[1768943793692,0.16673,3002.5,3001.7,5.1703156]
[1768943794584,0.16673,3002.5,3001.7,5.17390803]
[1768943795389,0.16673,3002.5,3001.8,1.16640013]
[1768943809018,0.16673,3002.5,3001.7,2.17759243]
[1768943810219,0.16673,3002.5,3001.8,2.19]
[1768943810220,1.16640013,3002.4,3001.8,2.19]
[1768943810620,1.16640013,3002.4,3001.7,0.00359243]
[1768943810822,1.16640013,3002.4,3001.7,2.19459243]
[1768943811015,1.30164712,3002.2,3001.7,0.00359243]
[1768943811221,1.16640013,3002.0,3001.4,2.9963156]
[1768943811525,1.16640013,3002.0,3001.2,5.1873156]
[1768943811924,1.16640013,3002.0,3001.2,2.191]
[1768943812224,1.16640013,3002.0,3001.2,2.1933674]
[1768943813120,1.16640013,3002.0,3001.2,2.1953674]
[1768943813325,1.30164712,3002.0,3001.2,2.1953674]
[1768943813520,1.16640013,3001.8,3001.2,0.0023674]
[1768943813718,0.16677,3001.9,3001.0,5.1893156]
[1768943813923,0.16677,3001.9,3001.0,2.193]
[1768943814720,0.16677,3001.9,3001.0,2.1959156]
[1768943815929,0.16678,3001.7,3001.0,2.1959156]
[1768943820632,0.16678,3001.7,3001.0,0.0029156]
[1768943820931,1.33318013,3001.6,3001.0,0.0029156]
[1768943821130,0.16678,3001.6,3001.0,0.0029156]
[1768943821730,1.30164712,3001.8,3000.1,3.335]
[1768943821731,0.13524699,3001.3,3000.4,2.9963156]
[1768943821919,0.13524699,3001.1,3000.1,5.35231312]
[1768943822124,0.13524699,3001.1,3000.1,1.16640013]
[1768943822831,0.13524699,3001.1,3000.1,1.17006407]
[1768943823419,0.16682,3000.9,3000.1,0.00366394]
[1768943824332,0.16683,3000.8,3000.1,0.00366394]
[1768943825531,0.16683,3000.8,3000.3,1.16640013]
[1768943838441,1.1529,3001.6,3000.7,1.16640013]
[1768943838641,0.1668,3001.3,3000.9,1.16640013]
[1768943838839,1.1529,3001.6,3000.7,1.16738472]
[1768943845049,1.1529,3001.6,3000.1,0.00366394]
[1768943845050,0.31182979,3000.9,3000.1,0.00366394]
[1768943845256,0.16683,3000.8,3000.1,0.00366394]
[1768943845752,1.16738472,3001.3,2999.7,2.9963156]
[1768943845753,0.14500979,3000.6,2999.7,2.9963156]
[1768943845945,0.31186979,3000.2,2999.5,2.195]
[1768943846654,0.16686,3000.2,2999.5,2.195]
[1768943846857,0.17072938,3000.2,2999.5,2.19896776]
[1768943847250,0.17072938,3000.2,2999.5,0.00396776]
[1768943847251,0.14887917,3000.2,2999.5,0.00396776]
[1768943847551,0.14500979,2999.9,2998.9,2.197]
[1768943847953,0.1669,2999.6,2998.9,2.197]
[1768943848554,0.1669,2999.6,2998.9,2.20021777]
[1768943849049,0.17072938,3000.2,2999.0,1.16738472]
[1768943849352,0.17072938,3000.2,2999.3,1.16738472]
[1768943851656,0.17072938,3000.2,2999.6,1.16738472]
[1768943853763,0.14500979,3000.7,2999.6,1.16738472]
[1768943854962,0.14825244,3000.7,2999.6,1.16738472]
[1768943855357,0.00324265,3000.7,2999.6,1.16738472]
[1768943862970,0.9338,3000.6,2999.6,1.16738472]
[1768943868767,0.9338,3000.6,2999.7,2.196]
[1768943875068,1.06920093,3000.6,2999.6,1.16738472]
[1768943875276,1.06920093,3000.6,2999.7,2.196]
[1768943879274,0.13540093,3000.5,2999.7,2.196]
[1768943881477,0.13540093,3000.5,2999.7,5.1923156]
[1768943882280,0.13540093,3000.5,2999.7,2.196]
[1768943882982,0.13540093,3000.5,2999.5,2.9963156]
[1768943883185,0.13540093,3000.5,2999.4,2.9963156]
[1768943883885,0.13540093,3000.5,2999.3,2.9963156]
[1768943884478,0.13540093,3000.5,2999.2,5.1963156]
[1768943887383,0.13540093,3000.5,2999.2,2.2]
[1768943892692,0.13540093,3000.5,2999.7,1.16738472]
[1768943892990,0.9338,3000.6,2999.7,1.16738472]
[1768943895885,0.9338,3000.6,2999.4,4.33060032]
[1768943896086,0.14013188,3000.5,2999.4,2.9963156]
[1768943896293,0.14013188,3000.5,2999.3,2.9963156]
[1768943900589,0.8765,3000.4,2999.3,2.9963156]
[1768943900794,1.01663188,3000.4,2999.3,2.9963156]
[1768943900994,1.01663188,3000.4,2999.4,1.16861565]
[1768943902987,0.8765,3000.4,3000.0,1.16861565]
[1768943903194,0.00324265,3000.7,3000.2,1.16861565]
[1768943903490,0.00324265,3000.7,3000.0,1.16861565]
[1768943906395,0.00324265,3000.7,3000.2,1.16861565]
[1768943906691,0.14013188,3001.2,3000.2,1.16861565]
[1768943906896,0.14013188,3001.0,3000.0,1.16861565]
[1768943907697,0.14428793,3001.0,3000.0,1.16861565]
[1768943908193,0.14428793,3001.0,2999.6,3.1632056]
[1768943908194,1.30874753,3000.9,2999.8,1.16861565]
[1768943908398,0.14013188,3000.8,2999.8,1.16861565]
[1768943910103,0.14013188,3000.8,3000.0,1.16861565]
[1768943915803,0.00415605,3001.0,3000.4,1.16861565]
[1768943926617,0.00415605,3001.0,3000.2,1.16861565]
[1768943927424,0.00415605,3001.0,3000.4,1.16861565]
[1768943927627,0.00415605,3001.0,3000.6,1.16861565]
[1768943927820,0.14509597,3001.6,3000.8,1.16861565]
[1768943928417,0.14509597,3001.6,3000.2,4.16493125]
[1768943928418,0.16677,3001.9,3001.0,1.16861565]
[1768943928721,1.16452665,3001.7,3001.0,1.16861565]
[1768943929424,1.16452665,3001.7,3001.2,1.16861565]
[1768943929624,1.16452665,3001.7,3001.2,1.1718891]
[1768943932124,4.81291863,3002.4,3001.4,1.16861565]
[1768943932419,5.98153428,3002.4,3001.4,1.16861565]
[1768943932926,5.98400821,3002.4,3001.4,1.16861565]
[1768943934522,0.14509597,3001.7,3001.2,0.00327345]
[1768943934730,0.14509597,3001.5,3000.5,4.16493125]
[1768943935228,0.14509597,3001.5,3000.9,1.16861565]
[1768943935424,0.14509597,3001.9,3001.1,1.16861565]
[1768943935830,0.14509597,3001.9,3001.1,1.17285469]
[1768943938127,0.14509597,3001.3,3000.5,2.9963156]
[1768943938333,0.14509597,3001.3,3000.3,1.16861565]
[1768943938829,0.14509597,3001.3,3000.5,1.16861565]
[1768943939133,0.14509597,3001.3,3000.5,1.17285538]
[1768943940321,0.14509597,3001.3,3000.7,1.16861565]
[1768943940530,0.14509597,3001.7,3000.9,1.16861565]
[1768943941835,0.14509597,3001.7,3000.7,1.16861565]
[1768943944026,0.14509597,3001.5,3000.5,1.17285538]
[1768943944224,0.14509597,3001.3,3000.5,0.00423973]
[1768943951842,0.14509597,3001.1,3000.5,0.00423973]
[1768943959451,0.13579638,3000.7,3000.1,2.9963156]
[1768943959748,0.13579638,3000.7,2999.9,4.33181125]
[1768943960051,0.13579638,3000.7,3000.1,1.16861565]
[1768943960440,0.13579638,3000.7,3000.1,1.17116918]
[1768943960857,0.13579638,3000.7,3000.1,0.00255353]
[1768943970755,0.13579638,3000.7,2999.8,2.9963156]
[1768943970947,0.13579638,3000.5,2999.7,2.9963156]
[1768943971147,0.13579638,3000.5,2999.6,2.205]
[1768943971755,0.13579638,3000.5,2999.6,2.20742316]
[1768943981260,0.13579638,3000.5,2999.6,0.00242316]
[1768943987867,0.14341268,3000.2,2999.3,2.208]
[1768943988069,0.14341268,3000.2,2998.9,3.1632456]
[1768943988769,0.14341268,3000.2,2998.9,0.16693]
[1768943988970,0.14672632,3000.2,2998.9,0.17011851]
[1768943994671,0.14341268,3000.0,2998.9,0.17011851]
[1768943997773,1.31152334,3000.0,2998.9,0.00318851]
[1768943997974,0.14341268,2999.9,2998.9,0.00318851]
[1768944000477,1.2735,3000.1,2999.1,1.16811066]
[1768944001070,1.2735,3000.1,2999.0,0.16692]
[1768944001270,1.41691268,3000.1,2999.0,0.16692]
[1768944001578,0.14341268,3000.0,2999.0,0.16692]
[1768944008587,0.14341268,3000.0,2998.9,0.00318851]
[1768944008883,0.14341268,2999.9,2998.9,0.00318851]
[1768944010285,0.14341268,2999.6,2998.9,0.00318851]
[1768944010480,1.11806321,3000.1,2999.0,0.16692]
[1768944010787,0.14341268,3000.5,2999.1,0.16692]
[1768944011283,0.14341268,3000.3,2999.0,2.208]
[1768944011786,0.14667155,3000.3,2999.0,2.21072965]
[1768944011981,0.14667155,3000.3,2999.0,0.00272965]
[1768944016989,0.14667155,3000.3,2999.2,1.16811066]
[1768944020395,0.14667155,3000.3,2999.0,0.00272965]
[1768944022703,0.14667155,3000.3,2999.0,2.99883419]
[1768944022896,0.14667155,3000.3,2999.3,1.16875974]
[1768944029905,0.13785623,3000.1,2999.1,2.99610454]
[1768944030209,0.13785623,2999.9,2999.0,3.16575419]
[1768944031402,1.16875974,3000.0,2999.0,3.16575419]
[1768944031403,0.1411151,3000.3,2999.3,1.16875974]
[1768944033502,1.16875974,3000.2,2999.1,1.16875974]
[1768944033708,0.13785623,3000.1,2999.1,1.16875974]
[1768944034110,0.13785623,3000.1,2999.0,0.16964965]
[1768944038215,0.13785623,3000.1,2999.1,1.16875974]
[1768944041411,0.13785623,2999.5,2999.0,0.00272965]
[1768944047724,0.14538525,2999.3,2998.3,1.16875974]
[1768944048223,0.14538525,2999.3,2998.5,1.16875974]
[1768944048719,0.14538525,2999.3,2998.5,1.17302828]
[1768944051823,0.14538525,2999.3,2998.5,0.00426854]
[1768944052324,0.14538525,2999.1,2998.5,0.00426854]
[1768944053118,0.14538525,2999.1,2998.1,1.16875974]
[1768944054021,0.14538525,2999.1,2998.1,1.17119906]
[1768944054626,0.14538525,2999.1,2998.3,1.16875974]
[1768944060426,0.14538525,2999.1,2998.1,0.00243932]
[1768944060427,0.14538525,2999.5,2998.9,1.16875974]
[1768944060633,0.14538525,3000.1,2999.1,1.16875974]
[1768944060831,0.14538525,2999.9,2999.1,1.16875974]
[1768944061528,0.14538525,2999.6,2998.5,1.16875974]
[1768944062131,0.14538525,2999.4,2998.5,1.16875974]
[1768944062625,0.14538525,2999.2,2998.4,0.16696]
[1768944062826,0.14538525,2999.2,2998.1,1.17119906]
[1768944064725,0.14538525,2999.2,2998.3,1.16875974]
[1768944066828,0.14538525,2999.2,2998.1,0.00243932]
[1768944067027,0.14538525,2999.2,2998.3,1.16875974]
[1768944071425,0.14538525,2999.0,2998.1,1.17119906]
[1768944071836,0.14538525,2999.0,2998.1,0.00243932]
[1768944072637,0.14538525,2998.6,2998.1,0.00243932]
[1768944072938,0.14538525,2998.6,2997.6,4.16486428]
[1768944073332,0.14538525,2998.6,2997.8,1.16875974]
[1768944073939,0.14538525,2998.6,2997.8,0.003866]
[1768944107767,0.31456445,2998.5,2997.8,0.003866]
[1768944107970,0.14493819,2998.4,2997.3,3.16312454]
[1768944108982,0.14493819,2998.4,2997.3,3.16737163]
[1768944110974,0.14493819,2998.4,2997.3,3.00035163]
[1768944111878,0.14493819,2998.3,2997.3,3.00035163]
[1768944112074,0.14493819,2998.3,2997.3,0.00424709]
[1768944113575,0.31190819,2998.3,2997.3,0.00424709]
[1768944113770,0.14493819,2998.2,2997.3,0.00424709]
[1768944113975,0.14493819,2998.0,2997.3,0.00424709]
[1768944114180,0.14493819,2998.0,2996.9,2.99610454]
[1768944114379,0.14493819,2998.0,2996.8,3.16315454]
[1768944114577,0.00396761,2998.2,2997.2,1.17020567]
[1768944115187,0.00396761,2998.2,2997.2,1.17373972]
[1768944116391,0.00396761,2998.2,2997.5,1.17020567]
[1768944117691,0.14493819,2999.4,2997.8,1.17020567]
[1768944117989,0.14493819,2999.2,2998.1,1.17020567]
[1768944118280,0.45912427,2999.1,2998.1,1.17020567]
[1768944118487,0.14493819,2999.1,2998.1,1.17020567]
[1768944118688,0.14739392,2999.1,2998.1,1.17020567]
[1768944120281,0.14493819,3000.0,2998.4,1.17020567]
[1768944120486,0.14493819,2999.9,2998.7,1.17020567]
[1768944120881,4.68534503,3000.2,2999.0,1.17020567]
[1768944121077,0.75423128,3000.3,2999.0,1.17020567]
[1768944121078,0.14493819,3000.3,2999.0,1.17020567]
[1768944121278,0.14803198,3000.3,2998.7,1.17020567]
[1768944121582,0.14493819,2999.7,2998.4,2.99610454]
[1768944121786,0.14493819,2999.7,2998.2,5.36207454]
[1768944122583,0.14493819,2999.7,2998.2,2.36597]
[1768944123686,0.14493819,2999.7,2998.4,0.16696]
[1768944124191,0.14493819,2999.7,2998.6,1.17020567]
[1768944124886,0.14493819,3000.1,2999.4,1.17020567]
[1768944125087,0.14493819,3000.1,2998.8,0.16694]
[1768944125278,0.14493819,3000.1,2998.8,1.34002801]
[1768944125483,0.14493819,3000.1,2998.8,6.24002801]
[1768944126190,0.14493819,3000.1,2998.8,1.34002801]
[1768944130090,0.14493819,3000.1,2999.1,1.17020567]
[1768944131194,0.00309379,3000.3,2999.1,1.17020567]
[1768944131697,0.14803198,3000.3,2999.1,1.17020567]
[1768944131897,0.14803198,3000.3,2998.9,0.16693]
[1768944144907,0.13715423,3000.2,2999.2,1.16879753]
[1768944147705,0.13715423,2999.8,2998.9,0.16693]
[1768944148801,0.13715423,2999.8,2998.8,1.17167987]
[1768944149408,0.13715423,2999.8,2998.8,4.16778441]
[1768944150710,0.13715423,2999.8,2998.8,1.17167987]
[1768944153414,0.13715423,2999.8,2998.8,4.16778441]
[1768944154613,0.13715423,2999.8,2998.8,2.99898688]
[1768944154810,0.13715423,2999.8,2998.8,4.16778441]
[1768944155215,0.13715423,2999.3,2998.8,0.00288234]
[1768944173724,0.1391648,2999.7,2999.1,1.16879753]
[1768944175525,0.1391648,2999.7,2998.9,1.16879753]
[1768944176828,0.1391648,2999.7,2998.8,2.99898688]
[1768944177021,0.1391648,2999.3,2998.8,0.00288234]
[1768944178537,0.1391648,2999.7,2998.9,1.16879753]
[1768944181330,0.1391648,2999.7,2998.8,2.99898688]
[1768944182236,0.1391648,2999.5,2998.8,2.99898688]
[1768944182431,0.1391648,2999.5,2998.8,0.00288234]
[1768944200838,1.16879753,2999.0,2998.1,5.99220909]
[1768944201141,1.16879753,2998.6,2997.9,0.13846378]
[1768944201535,1.16879753,2998.6,2997.5,3.69427131]
[1768944201842,1.16879753,2998.6,2997.7,0.0036911]
[1768944202042,1.16879753,2998.4,2997.7,0.0036911]
[1768944203342,1.16879753,2998.6,2997.7,0.0036911]
[1768944203936,1.16879753,2998.4,2997.7,0.0036911]
[1768944204542,1.16879753,2998.8,2997.7,0.0036911]
[1768944204543,1.16879753,2998.6,2997.7,0.0036911]
[1768944205044,1.17019831,2998.9,2997.7,0.0036911]
[1768944207140,1.17019831,2998.6,2997.7,0.0036911]
[1768944207847,1.17019831,2998.3,2997.7,0.0036911]
[1768944208050,1.17019831,2998.3,2997.1,0.13846378]
[1768944209054,1.17019831,2998.6,2997.1,0.14247974]
[1768944211359,0.00120669,2998.5,2997.1,0.00401596]
[1768944211560,1.17019831,2998.3,2997.1,0.00401596]
[1768944219470,1.17019831,2998.3,2997.1,0.14247974]
[1768944219873,1.33715831,2998.3,2997.1,0.14247974]
[1768944221373,0.16696,2998.3,2997.1,0.14247974]
[1768944221776,0.16693,2998.9,2997.4,0.13846378]
[1768944225969,0.16693,2998.9,2997.5,0.14083455]
[1768944226167,1.17019831,2999.1,2997.6,0.14083455]
[1768944226371,7.78609831,2999.5,2997.7,0.14083455]
[1768944226576,1.25826857,2999.4,2997.7,0.14083455]
[1768944226765,1.25826857,2999.3,2997.7,0.14083455]
[1768944226966,1.25826857,2999.2,2997.7,0.14083455]
[1768944227180,7.78609831,2999.5,2997.7,0.14083455]
[1768944227181,0.94576941,2999.1,2997.7,0.14083455]
[1768944227379,0.1669,2999.4,2997.7,0.14083455]
[1768944227576,1.17019831,2999.2,2997.7,0.14083455]
[1768944227781,0.94576956,2999.1,2997.7,0.14083455]
[1768944229370,0.31354863,2999.0,2997.7,0.14083455]
[1768944229570,1.33711831,2999.2,2997.7,0.14083455]
[1768944229775,1.26065638,2999.1,2997.7,0.14083455]
[1768944229973,0.94710775,2999.0,2997.7,0.14083455]
[1768944230177,1.33711831,2999.2,2997.7,0.14083455]
[1768944230375,1.26160796,2999.1,2997.7,0.14083455]
[1768944230573,1.26160796,2999.0,2997.7,0.14083455]
[1768944230879,1.26160796,2998.9,2997.7,0.14083455]
[1768944231066,1.33711831,2999.2,2997.7,0.14083455]
[1768944231273,1.261972,2999.1,2997.7,0.14083455]
[1768944231470,0.94809741,2999.0,2997.7,0.14083455]
[1768944231678,1.26204701,2998.9,2997.7,0.14083455]
[1768944231877,1.33711831,2999.2,2997.7,0.14083455]
[1768944232183,1.2622834,2999.1,2997.7,0.14083455]
[1768944232383,1.2622834,2999.0,2997.7,0.14083455]
[1768944232574,1.2622834,2998.9,2997.7,0.14083455]
[1768944232782,1.33711831,2999.2,2997.7,0.14083455]
[1768944232973,1.26247477,2999.1,2997.7,0.14083455]
[1768944233174,1.26247477,2999.0,2997.7,0.14083455]
[1768944233374,1.26247477,2998.9,2997.7,0.14083455]
[1768944233574,1.33711831,2999.2,2997.7,0.14083455]
[1768944233775,1.26267037,2999.1,2997.7,0.14083455]
[1768944233976,1.26267037,2999.0,2997.7,0.14083455]
[1768944234180,1.26267037,2998.9,2997.7,0.14083455]
[1768944234375,1.33711831,2999.2,2997.7,0.14083455]
[1768944234583,1.26270869,2999.1,2997.7,0.14083455]
[1768944234881,1.26270869,2999.0,2997.7,0.14083455]
[1768944235186,1.33711831,2999.2,2997.7,0.14083455]
[1768944235187,1.26270869,2998.9,2997.7,0.14083455]
[1768944235484,1.33711831,2999.2,2997.7,0.14083455]
[1768944235684,1.26269405,2999.1,2997.7,0.14083455]
[1768944235884,1.26269405,2999.0,2997.7,0.14083455]
[1768944236185,0.94864282,2998.9,2997.7,0.14083455]
[1768944236385,1.33711831,2999.2,2997.7,0.14083455]
[1768944236579,1.26261612,2999.1,2997.7,0.14083455]
[1768944236780,1.26261612,2999.0,2997.7,0.14083455]
[1768944237084,0.94858529,2998.9,2997.7,0.14083455]
[1768944237386,1.33711831,2999.2,2997.7,0.14083455]
[1768944237580,1.26257577,2999.1,2997.7,0.14083455]
[1768944237785,1.26257577,2999.0,2997.7,0.14083455]
[1768944237987,0.94855541,2998.9,2997.7,0.14083455]
[1768944238294,1.33711831,2999.2,2997.7,0.14083455]
[1768944238485,1.2625228,2999.1,2997.7,0.14083455]
[1768944238680,1.2625228,2999.0,2997.7,0.14083455]
[1768944238887,1.2625228,2998.9,2997.7,0.14083455]
[1768944239087,1.33711831,2999.2,2997.7,0.14083455]
[1768944239394,1.26249558,2999.1,2997.7,0.14083455]
[1768944239689,1.26249558,2999.0,2997.7,0.14083455]
[1768944239890,0.94849442,2998.9,2997.7,0.14083455]
[1768944240093,1.33711831,2999.2,2997.7,0.14083455]
[1768944240292,1.26240313,2999.1,2997.7,0.14083455]
[1768944240588,1.26240313,2999.0,2997.7,0.14083455]
[1768944240789,0.94841975,2998.9,2997.7,0.14083455]
[1768944240992,1.33711831,2999.2,2997.7,0.14083455]
[1768944241186,1.26241979,2999.1,2997.7,0.14083455]
[1768944241487,1.26241979,2999.0,2997.7,0.14083455]
[1768944241694,0.94843608,2998.9,2997.7,0.14083455]
[1768944241895,0.16692,2999.1,2997.7,0.14083455]
[1768944242086,1.26240409,2999.0,2997.7,0.14083455]
[1768944242298,1.26241499,2998.9,2997.7,0.14083455]
[1768944242489,0.16692,2999.1,2997.7,0.14083455]
[1768944242688,1.26244604,2999.0,2997.7,0.14083455]
[1768944242889,1.26244604,2998.9,2997.7,0.14083455]
[1768944243085,0.16692,2999.1,2997.7,0.14083455]
[1768944243382,1.26245491,2999.0,2997.7,0.14083455]
[1768944243686,0.94845962,2998.9,2997.7,0.14083455]
[1768944243892,0.16692,2999.1,2997.7,0.14083455]
[1768944244191,1.26248189,2999.0,2997.7,0.14083455]
[1768944244388,0.16692,2999.1,2997.7,0.14083455]
[1768944244588,1.26255202,2999.0,2997.7,0.14083455]
[1768944244890,0.16692,2999.1,2997.7,0.14083455]
[1768944245084,1.26254907,2999.0,2997.7,0.14083455]
[1768944245280,0.16692,2999.1,2997.7,0.14083455]
[1768944245485,1.26264271,2999.0,2997.7,0.14083455]
[1768944245696,0.16692,2999.1,2997.7,0.14083455]
[1768944245991,1.2626486,2999.0,2997.7,0.14083455]
[1768944246190,0.16692,2999.1,2997.7,0.14083455]
[1768944246392,1.26276936,2999.0,2997.7,0.14083455]
[1768944246596,0.16692,2999.1,2997.7,0.14083455]
[1768944246893,1.26277249,2999.0,2997.7,0.14083455]
[1768944247094,0.16692,2999.1,2997.7,0.14083455]
[1768944247301,1.2627821,2999.0,2997.7,0.14083455]
[1768944247591,0.16692,2999.1,2997.7,0.14083455]
[1768944247895,1.26292802,2999.0,2997.7,0.14083455]
[1768944248195,0.94895659,2998.9,2997.7,0.14083455]
[1768944248394,0.16692,2999.1,2997.7,0.14083455]
[1768944248590,1.26312298,2999.0,2997.7,0.14083455]
[1768944248792,1.26312298,2998.9,2997.7,0.14083455]
[1768944248998,0.16692,2999.1,2997.7,0.14083455]
[1768944249192,1.26312298,2999.0,2997.7,0.14083455]
[1768944249392,1.26312298,2998.9,2997.7,0.14083455]
[1768944249591,0.16692,2999.1,2997.7,0.14083455]
[1768944249900,1.26336451,2999.0,2997.7,0.14083455]
[1768944250198,1.26336451,2998.9,2997.7,0.14083455]
[1768944250398,0.16692,2999.1,2997.7,0.14083455]
[1768944250600,1.26367553,2999.0,2997.7,0.14083455]
[1768944250900,1.26367553,2998.9,2997.7,0.14083455]
[1768944251100,0.16692,2999.1,2997.7,0.14083455]
[1768944251400,1.26397096,2999.0,2997.7,0.14083455]
[1768944251598,1.26397096,2998.9,2997.7,0.14083455]
[1768944251799,0.31440978,2998.8,2997.7,0.14083455]
[1768944252101,0.16692,2999.1,2997.7,0.14083455]
[1768944252292,1.26431104,2999.0,2997.7,0.14083455]
[1768944252492,1.26431104,2998.9,2997.7,0.14083455]
[1768944252694,0.31440811,2998.8,2997.7,0.14083455]
[1768944252894,0.16692,2999.1,2997.7,0.14083455]
[1768944253200,1.26439718,2999.0,2997.7,0.14083455]
[1768944253399,1.26439718,2998.9,2997.7,0.14083455]
[1768944253601,1.26439718,2998.8,2997.7,0.14083455]
[1768944253802,0.16692,2999.1,2997.7,0.14083455]
[1768944254001,1.26404315,2999.0,2997.7,0.14083455]
[1768944254202,0.16692,2999.1,2997.7,0.14083455]
[1768944254203,1.26404315,2998.9,2997.7,0.14083455]
[1768944254400,1.26404315,2998.8,2997.7,0.14083455]
[1768944254605,0.16692,2999.1,2997.7,0.14083455]
[1768944254902,1.26431527,2999.0,2997.7,0.14083455]
[1768944255096,1.26431527,2998.9,2997.7,0.14083455]